[Event "Late-Titled-Tuesday-Blitz-October-17-2023"]
[Site "Chess.com"]
[Date "2023.10.17"]
[Round "11"]
[White "dianamirza"]
[Black "expii"]
[Result "0-1"]
[WhiteElo "1991"]
[BlackElo "2243"]
[TimeControl "180+1"]
[EndTime "16:01:27 PDT"]
[Termination "expii won on time"]

1. d4 {[%clk 0:03:00.9]} 1... d5 {[%clk 0:02:59.4]} 2. Nf3 {[%clk 0:03:00.9]}
2... e6 {[%clk 0:02:59.7]} 3. e3 {[%clk 0:03:01.4]} 3... c5 {[%clk 0:03:00]} 4.
b3 {[%clk 0:03:01]} 4... Nc6 {[%clk 0:03:00.5]} 5. Bb2 {[%clk 0:03:01]} 5... Nf6
{[%clk 0:03:01]} 6. Nbd2 {[%clk 0:02:59.9]} 6... Be7 {[%clk 0:03:00.7]} 7. Bd3
{[%clk 0:03:00]} 7... O-O {[%clk 0:03:00.8]} 8. O-O {[%clk 0:03:00.2]} 8... h6
{[%clk 0:03:01.1]} 9. Ne5 {[%clk 0:02:59.1]} 9... a6 {[%clk 0:02:57.9]} 10. f4
{[%clk 0:02:55.5]} 10... Bd7 {[%clk 0:02:54.7]} 11. Qf3 {[%clk 0:02:30.3]} 11...
b5 {[%clk 0:02:43]} 12. c4 {[%clk 0:02:19.4]} 12... cxd4 {[%clk 0:02:35.2]} 13.
cxd5 {[%clk 0:02:12]} 13... exd5 {[%clk 0:02:22.1]} 14. Nxc6 {[%clk 0:02:06.2]}
14... Bxc6 {[%clk 0:02:15.1]} 15. Bxd4 {[%clk 0:02:05.5]} 15... Re8 {[%clk
0:01:58.4]} 16. g4 {[%clk 0:01:56.8]} 16... Ne4 {[%clk 0:01:45.2]} 17. Qg2
{[%clk 0:01:15.1]} 17... Bf6 {[%clk 0:01:29.2]} 18. Nf3 {[%clk 0:01:13.2]} 18...
Bb7 {[%clk 0:01:25]} 19. Ne5 {[%clk 0:01:08.2]} 19... Bxe5 {[%clk 0:01:20.8]}
20. Bxe5 {[%clk 0:01:07.4]} 20... f6 {[%clk 0:01:18.4]} 21. Bd4 {[%clk
0:01:06.4]} 21... Qd6 {[%clk 0:01:13.5]} 22. Rac1 {[%clk 0:00:57.4]} 22... Rac8
{[%clk 0:01:05.9]} 23. Qb2 {[%clk 0:00:53.8]} 23... Qd7 {[%clk 0:01:01.5]} 24.
h3 {[%clk 0:00:49.9]} 24... Rxc1 {[%clk 0:00:58.3]} 25. Rxc1 {[%clk 0:00:48.7]}
25... Rc8 {[%clk 0:00:59.2]} 26. Kh2 {[%clk 0:00:40.2]} 26... h5 {[%clk
0:00:45.7]} 27. g5 {[%clk 0:00:34.6]} 27... Rxc1 {[%clk 0:00:44.8]} 28. Qxc1
{[%clk 0:00:33.8]} 28... fxg5 {[%clk 0:00:44.2]} 29. Bxe4 {[%clk 0:00:26.8]}
29... dxe4 {[%clk 0:00:44.5]} 30. fxg5 {[%clk 0:00:24]} 30... Bc8 {[%clk
0:00:43.3]} 31. Qf1 {[%clk 0:00:19.8]} 31... Qd6+ {[%clk 0:00:40.2]} 32. Qf4
{[%clk 0:00:19]} 32... Qe6 {[%clk 0:00:34.6]} 33. Qg3 {[%clk 0:00:15.5]} 33...
Qf5 {[%clk 0:00:34]} 34. Kg2 {[%clk 0:00:13.6]} 34... Kh7 {[%clk 0:00:30.3]} 35.
g6+ {[%clk 0:00:11.8]} 35... Qxg6 {[%clk 0:00:27.8]} 36. Qxg6+ {[%clk
0:00:12.4]} 36... Kxg6 {[%clk 0:00:28.7]} 37. Kg3 {[%clk 0:00:11.8]} 37... Kf7
{[%clk 0:00:28.8]} 38. Kh4 {[%clk 0:00:11.5]} 38... g6 {[%clk 0:00:28.8]} 39.
Kg3 {[%clk 0:00:08.9]} 39... Bf5 {[%clk 0:00:28.8]} 40. h4 {[%clk 0:00:09.2]}
40... Ke6 {[%clk 0:00:28.6]} 41. Kf4 {[%clk 0:00:09.6]} 41... Kd5 {[%clk
0:00:28.5]} 42. b4 {[%clk 0:00:08.1]} 42... Bg4 {[%clk 0:00:27.9]} 43. a3 {[%clk
0:00:08.2]} 43... Bf5 {[%clk 0:00:27.4]} 44. Bc5 {[%clk 0:00:08.6]} 44... Kc4
{[%clk 0:00:27.6]} 45. Ke5 {[%clk 0:00:01.8]} 45... Kb3 {[%clk 0:00:26.5]} 46.
Kd6 {[%clk 0:00:02.1]} 46... Kxa3 {[%clk 0:00:24.3]} 47. Kc7 {[%clk 0:00:02.6]}
47... Bg4 {[%clk 0:00:15.5]} 48. Kb6 {[%clk 0:00:02.4]} 48... Kb3 {[%clk
0:00:16]} 49. Kxa6 {[%clk 0:00:01.2]} 49... Kc4 {[%clk 0:00:16.6]} 0-1

[Event "Late-Titled-Tuesday-Blitz-October-17-2023"]
[Site "Chess.com"]
[Date "2023.10.17"]
[Round "11"]
[White "Hasangatin_Ramil"]
[Black "GMKrikor"]
[Result "0-1"]
[WhiteElo "2716"]
[BlackElo "2822"]
[TimeControl "180+1"]
[EndTime "16:01:29 PDT"]
[Termination "GMKrikor won by resignation"]

1. e4 {[%clk 0:03:00.9]} 1... e6 {[%clk 0:03:00.2]} 2. d3 {[%clk 0:03:00]} 2...
d5 {[%clk 0:03:00.6]} 3. Qe2 {[%clk 0:03:00.6]} 3... Nc6 {[%clk 0:02:34]} 4. Nf3
{[%clk 0:03:00]} 4... e5 {[%clk 0:02:34.6]} 5. g3 {[%clk 0:02:59.3]} 5... Nf6
{[%clk 0:02:32.7]} 6. Bg2 {[%clk 0:02:58.8]} 6... dxe4 {[%clk 0:02:29.4]} 7.
dxe4 {[%clk 0:02:58.3]} 7... Bc5 {[%clk 0:02:30.1]} 8. O-O {[%clk 0:02:57.4]}
8... O-O {[%clk 0:02:29.6]} 9. c3 {[%clk 0:02:54.8]} 9... a5 {[%clk 0:02:28.9]}
10. Nh4 {[%clk 0:02:50.8]} 10... b6 {[%clk 0:02:28.3]} 11. Rd1 {[%clk
0:02:47.9]} 11... Ba6 {[%clk 0:02:23]} 12. Qf3 {[%clk 0:02:40.3]} 12... Qe8
{[%clk 0:02:13.5]} 13. Bg5 {[%clk 0:02:31.9]} 13... Nd7 {[%clk 0:01:33.2]} 14.
Bh3 {[%clk 0:02:31.7]} 14... Bc8 {[%clk 0:01:30.4]} 15. Nd2 {[%clk 0:02:21.8]}
15... f6 {[%clk 0:01:24.3]} 16. Be3 {[%clk 0:02:21.3]} 16... Bxe3 {[%clk
0:01:23.8]} 17. Qxe3 {[%clk 0:02:20.8]} 17... Rf7 {[%clk 0:01:24.5]} 18. Nf1
{[%clk 0:01:58.2]} 18... Nc5 {[%clk 0:01:22.6]} 19. Bxc8 {[%clk 0:01:55.8]}
19... Rxc8 {[%clk 0:01:22.3]} 20. Qe2 {[%clk 0:01:53.5]} 20... g6 {[%clk
0:01:20.3]} 21. Qc4 {[%clk 0:01:47.2]} 21... Kg7 {[%clk 0:01:13.2]} 22. Ne3
{[%clk 0:01:46.6]} 22... Qe6 {[%clk 0:00:51.4]} 23. Rd5 {[%clk 0:01:42.3]} 23...
Nb7 {[%clk 0:00:40.6]} 24. Rad1 {[%clk 0:01:33.6]} 24... Ne7 {[%clk 0:00:40.3]}
25. Rd7 {[%clk 0:01:27.2]} 25... Qxc4 {[%clk 0:00:40.1]} 26. Nxc4 {[%clk
0:01:27]} 26... Nc5 {[%clk 0:00:40.9]} 27. Rd8 {[%clk 0:01:18.7]} 27... Nxe4
{[%clk 0:00:34.7]} 28. R1d7 {[%clk 0:01:13.1]} 28... Rxd8 {[%clk 0:00:30.4]} 29.
Rxd8 {[%clk 0:01:14]} 29... Nc6 {[%clk 0:00:29.2]} 30. Rc8 {[%clk 0:01:02.2]}
30... Nc5 {[%clk 0:00:29.1]} 31. Ng2 {[%clk 0:00:55.2]} 31... Rd7 {[%clk
0:00:28.2]} 32. Nge3 {[%clk 0:00:55.2]} 32... a4 {[%clk 0:00:25.8]} 33. Kg2
{[%clk 0:00:49.6]} 33... Ne7 {[%clk 0:00:22.5]} 34. Ra8 {[%clk 0:00:48.6]} 34...
b5 {[%clk 0:00:21.9]} 35. Na5 {[%clk 0:00:45.7]} 35... c6 {[%clk 0:00:18.6]} 36.
b4 {[%clk 0:00:43.3]} 36... axb3 {[%clk 0:00:12.1]} 37. axb3 {[%clk 0:00:44.2]}
37... Kf7 {[%clk 0:00:12.2]} 38. b4 {[%clk 0:00:43]} 38... Ne4 {[%clk
0:00:12.3]} 39. c4 {[%clk 0:00:43.5]} 39... Rd2 {[%clk 0:00:12.2]} 40. Ra7
{[%clk 0:00:42.1]} 40... Ke6 {[%clk 0:00:08.7]} 41. Nb7 {[%clk 0:00:36.5]} 41...
Rxf2+ {[%clk 0:00:07.4]} 42. Kg1 {[%clk 0:00:36.9]} 42... Rd2 {[%clk 0:00:07.2]}
43. Nc5+ {[%clk 0:00:33.7]} 43... Kf7 {[%clk 0:00:07.2]} 44. Ng4 {[%clk
0:00:26.7]} 44... Nxc5 {[%clk 0:00:05.3]} 45. bxc5 {[%clk 0:00:25.1]} 45... bxc4
{[%clk 0:00:05.8]} 46. Nh6+ {[%clk 0:00:22.8]} 46... Ke6 {[%clk 0:00:06]} 47.
Ra4 {[%clk 0:00:21.9]} 47... c3 {[%clk 0:00:06.3]} 0-1

[Event "Late-Titled-Tuesday-Blitz-October-17-2023"]
[Site "Chess.com"]
[Date "2023.10.17"]
[Round "11"]
[White "GianmarcoVaR"]
[Black "luizzy"]
[Result "1-0"]
[WhiteElo "2705"]
[BlackElo "2568"]
[TimeControl "180+1"]
[EndTime "16:01:32 PDT"]
[Termination "GianmarcoVaR won by resignation"]

1. e4 {[%clk 0:02:59.8]} 1... d6 {[%clk 0:02:57.9]} 2. d4 {[%clk 0:02:59.7]}
2... Nf6 {[%clk 0:02:58.4]} 3. Bd3 {[%clk 0:02:58.6]} 3... c5 {[%clk 0:02:58.1]}
4. c3 {[%clk 0:02:58.8]} 4... g6 {[%clk 0:02:45.8]} 5. Nf3 {[%clk 0:02:58.4]}
5... Bg7 {[%clk 0:02:46]} 6. O-O {[%clk 0:02:58.2]} 6... O-O {[%clk 0:02:45.9]}
7. Re1 {[%clk 0:02:57.4]} 7... Bg4 {[%clk 0:02:39]} 8. Nbd2 {[%clk 0:02:55.7]}
8... Nc6 {[%clk 0:02:38.8]} 9. h3 {[%clk 0:02:55.7]} 9... Bxf3 {[%clk
0:02:37.3]} 10. Nxf3 {[%clk 0:02:55.8]} 10... Rc8 {[%clk 0:02:25.5]} 11. Be3
{[%clk 0:02:55.7]} 11... Qb6 {[%clk 0:02:18]} 12. Qe2 {[%clk 0:02:25.8]} 12...
cxd4 {[%clk 0:02:11.5]} 13. Nxd4 {[%clk 0:02:20.1]} 13... Qa5 {[%clk 0:01:55.5]}
14. Nb3 {[%clk 0:02:17]} 14... Qc7 {[%clk 0:01:54.1]} 15. f4 {[%clk 0:02:16.7]}
15... Nd7 {[%clk 0:01:53.4]} 16. h4 {[%clk 0:02:02.1]} 16... h5 {[%clk
0:01:51.1]} 17. Nd2 {[%clk 0:01:51.7]} 17... Nc5 {[%clk 0:01:47.6]} 18. Bc2
{[%clk 0:01:51]} 18... e6 {[%clk 0:01:32.2]} 19. Nf3 {[%clk 0:01:40.6]} 19...
Ne7 {[%clk 0:01:13]} 20. Ng5 {[%clk 0:01:34.8]} 20... d5 {[%clk 0:01:11.5]} 21.
e5 {[%clk 0:01:33.3]} 21... Nf5 {[%clk 0:01:11.2]} 22. Bf2 {[%clk 0:01:21.4]}
22... Nh6 {[%clk 0:00:59.6]} 23. Kh1 {[%clk 0:01:08.8]} 23... Rfd8 {[%clk
0:00:59.2]} 24. Rad1 {[%clk 0:01:06.4]} 24... a6 {[%clk 0:00:59.3]} 25. Bd4
{[%clk 0:01:05]} 25... b5 {[%clk 0:00:58.5]} 26. a3 {[%clk 0:01:00.6]} 26... Nd7
{[%clk 0:00:55.2]} 27. Rg1 {[%clk 0:00:57.9]} 27... Ng4 {[%clk 0:00:35.5]} 28.
Rd3 {[%clk 0:00:58.3]} 28... Nf8 {[%clk 0:00:30.1]} 29. Rg3 {[%clk 0:00:57.9]}
29... Nh7 {[%clk 0:00:27]} 30. Nxe6 {[%clk 0:00:48.2]} 30... fxe6 {[%clk
0:00:25.2]} 31. Bxg6 {[%clk 0:00:48.9]} 31... Rf8 {[%clk 0:00:13.3]} 32. Rxg4
{[%clk 0:00:43.4]} 32... hxg4 {[%clk 0:00:13.1]} 33. Qxg4 {[%clk 0:00:44.3]}
33... Bh6 {[%clk 0:00:07.2]} 34. Bf5+ {[%clk 0:00:40.6]} 34... Kh8 {[%clk
0:00:05.9]} 35. Bxe6 {[%clk 0:00:38]} 35... Rxf4 {[%clk 0:00:06.2]} 36. Qh3
{[%clk 0:00:37.5]} 36... Rcf8 {[%clk 0:00:04.8]} 37. Bxd5 {[%clk 0:00:37.6]}
37... Qe7 {[%clk 0:00:03.9]} 38. g3 {[%clk 0:00:36.2]} 38... Rf2 {[%clk
0:00:01.7]} 39. e6+ {[%clk 0:00:30.5]} 39... Bg7 {[%clk 0:00:01.2]} 40. Bxf2
{[%clk 0:00:31.1]} 40... Kg8 {[%clk 0:00:01.7]} 41. Bd4 {[%clk 0:00:21.2]} 41...
Bxd4 {[%clk 0:00:01.2]} 42. cxd4 {[%clk 0:00:22.1]} 42... Qd6 {[%clk 0:00:01.7]}
43. Qg4+ {[%clk 0:00:21.5]} 43... Kh8 {[%clk 0:00:01.9]} 44. Be4 {[%clk
0:00:19.5]} 44... Qxd4 {[%clk 0:00:01.5]} 45. Qg6 {[%clk 0:00:18]} 45... Qg7
{[%clk 0:00:01.3]} 46. Qxh7+ {[%clk 0:00:18.1]} 46... Qxh7 {[%clk 0:00:01.6]}
47. Bxh7 {[%clk 0:00:19]} 47... Kxh7 {[%clk 0:00:02.5]} 48. e7 {[%clk
0:00:19.9]} 48... Re8 {[%clk 0:00:03.1]} 49. Re1 {[%clk 0:00:20.6]} 49... Kg7
{[%clk 0:00:04]} 50. Kg2 {[%clk 0:00:20.2]} 1-0

[Event "Late-Titled-Tuesday-Blitz-October-17-2023"]
[Site "Chess.com"]
[Date "2023.10.17"]
[Round "11"]
[White "Yushko_Olga"]
[Black "adrivillu"]
[Result "0-1"]
[WhiteElo "2178"]
[BlackElo "2311"]
[TimeControl "180+1"]
[EndTime "16:01:36 PDT"]
[Termination "adrivillu won by resignation"]

1. d4 {[%clk 0:02:59.8]} 1... e6 {[%clk 0:02:59.8]} 2. c4 {[%clk 0:02:59.3]}
2... Nf6 {[%clk 0:02:59.6]} 3. Nc3 {[%clk 0:02:58.9]} 3... c5 {[%clk 0:02:59.9]}
4. Nf3 {[%clk 0:02:58]} 4... cxd4 {[%clk 0:02:59.1]} 5. Nxd4 {[%clk 0:02:57.9]}
5... Bb4 {[%clk 0:02:59.1]} 6. Bg5 {[%clk 0:02:55.5]} 6... Bxc3+ {[%clk
0:02:42.4]} 7. bxc3 {[%clk 0:02:54.7]} 7... Qa5 {[%clk 0:02:35]} 8. Nb5 {[%clk
0:02:54.4]} 8... O-O {[%clk 0:02:34.1]} 9. Bxf6 {[%clk 0:02:47.3]} 9... gxf6
{[%clk 0:02:33.8]} 10. Qd4 {[%clk 0:02:46.9]} 10... f5 {[%clk 0:02:19.3]} 11. e3
{[%clk 0:02:40.7]} 11... a6 {[%clk 0:02:04.2]} 12. Nd6 {[%clk 0:02:35.9]} 12...
Nc6 {[%clk 0:02:00.8]} 13. Qf6 {[%clk 0:02:33.7]} 13... Qe5 {[%clk 0:01:59.9]}
14. Qxe5 {[%clk 0:02:28.3]} 14... Nxe5 {[%clk 0:01:59.8]} 15. Be2 {[%clk
0:02:24.5]} 15... f6 {[%clk 0:01:59.5]} 16. O-O {[%clk 0:02:23.5]} 16... Nf7
{[%clk 0:01:59.3]} 17. Nxc8 {[%clk 0:02:21.1]} 17... Rfxc8 {[%clk 0:01:57.7]}
18. Rfd1 {[%clk 0:02:19.6]} 18... Rc7 {[%clk 0:01:56.5]} 19. Rab1 {[%clk
0:02:17.5]} 19... Kf8 {[%clk 0:01:40.6]} 20. Rb6 {[%clk 0:02:13.8]} 20... Ke7
{[%clk 0:01:37.9]} 21. Rdb1 {[%clk 0:02:12.5]} 21... Ra7 {[%clk 0:01:28.7]} 22.
h3 {[%clk 0:02:10.9]} 22... Ne5 {[%clk 0:01:12.1]} 23. R1b4 {[%clk 0:02:05.6]}
23... Kd8 {[%clk 0:01:01.2]} 24. f4 {[%clk 0:02:03.1]} 24... Nc6 {[%clk
0:00:53.9]} 25. Rb2 {[%clk 0:02:01.5]} 25... Na5 {[%clk 0:00:47.3]} 26. R2b4
{[%clk 0:01:58.4]} 26... Ra8 {[%clk 0:00:46.6]} 27. Kf2 {[%clk 0:01:55.1]} 27...
Rac8 {[%clk 0:00:46.5]} 28. g4 {[%clk 0:01:48.6]} 28... fxg4 {[%clk 0:00:42.4]}
29. hxg4 {[%clk 0:01:49.5]} 29... Nxc4 {[%clk 0:00:36.2]} 30. Bxc4 {[%clk
0:01:47]} 30... Rxc4 {[%clk 0:00:35.8]} 31. Rxb7 {[%clk 0:01:44.3]} 31... Rxc3
{[%clk 0:00:33.3]} 32. Ra4 {[%clk 0:01:36.9]} 32... R3c6 {[%clk 0:00:22.1]} 33.
Ra7 {[%clk 0:01:35.1]} 33... Ke7 {[%clk 0:00:19.7]} 34. R4xa6 {[%clk 0:01:33.6]}
34... Rxa6 {[%clk 0:00:19.2]} 35. Rxa6 {[%clk 0:01:34.5]} 35... Rc1 {[%clk
0:00:19.1]} 36. a4 {[%clk 0:01:33.3]} 36... Ra1 {[%clk 0:00:19.2]} 37. Ra8
{[%clk 0:01:32.1]} 37... Kf7 {[%clk 0:00:18.6]} 38. a5 {[%clk 0:01:29]} 38... d5
{[%clk 0:00:17.5]} 39. Kf3 {[%clk 0:01:28.4]} 39... e5 {[%clk 0:00:17.5]} 40.
fxe5 {[%clk 0:01:27.7]} 40... fxe5 {[%clk 0:00:17.7]} 41. Ra7+ {[%clk
0:01:26.1]} 41... Kg6 {[%clk 0:00:17.7]} 42. a6 {[%clk 0:01:25.1]} 42... e4+
{[%clk 0:00:14]} 43. Kf4 {[%clk 0:01:23]} 43... Rf1+ {[%clk 0:00:13.8]} 44. Ke5
{[%clk 0:01:22.9]} 44... Re1 {[%clk 0:00:09]} 45. Kxd5 {[%clk 0:01:11.8]} 45...
Rxe3 {[%clk 0:00:09.1]} 46. Kd4 {[%clk 0:01:12]} 46... Ra3 {[%clk 0:00:09.1]}
47. Kxe4 {[%clk 0:01:11.8]} 47... h5 {[%clk 0:00:09.2]} 48. gxh5+ {[%clk
0:01:10.7]} 48... Kxh5 {[%clk 0:00:09.6]} 49. Kf5 {[%clk 0:01:10.2]} 49... Ra5+
{[%clk 0:00:08.8]} 50. Kf6 {[%clk 0:01:09.8]} 50... Kg4 {[%clk 0:00:08.8]} 51.
Ra8 {[%clk 0:01:09.2]} 51... Kf4 {[%clk 0:00:08.7]} 52. a7 {[%clk 0:01:05.8]}
52... Ra6+ {[%clk 0:00:06]} 53. Ke7 {[%clk 0:01:02.8]} 53... Ke5 {[%clk
0:00:06.3]} 54. Kf7 {[%clk 0:01:02.5]} 54... Kf5 {[%clk 0:00:06.3]} 55. Kg8
{[%clk 0:01:00.3]} 55... Kg6 {[%clk 0:00:05.8]} 56. Kf8 {[%clk 0:00:57.9]} 56...
Kf6 {[%clk 0:00:06]} 57. Ke8 {[%clk 0:00:58]} 57... Ke6 {[%clk 0:00:06.1]} 58.
Kd8 {[%clk 0:00:58.6]} 58... Kd6 {[%clk 0:00:06.5]} 59. Kc8 {[%clk 0:00:58.3]}
59... Kc6 {[%clk 0:00:06.9]} 60. Kb8 {[%clk 0:00:58.7]} 60... Ra1 {[%clk
0:00:04.8]} 61. Kc8 {[%clk 0:00:56.4]} 61... Rh1 {[%clk 0:00:05.3]} 62. Kd8
{[%clk 0:00:56]} 62... Rh8+ {[%clk 0:00:06.2]} 63. Ke7 {[%clk 0:00:55.5]} 63...
Rxa8 {[%clk 0:00:07.1]} 0-1

[Event "Late-Titled-Tuesday-Blitz-October-17-2023"]
[Site "Chess.com"]
[Date "2023.10.17"]
[Round "11"]
[White "Cristi_Coca"]
[Black "ritanovikova"]
[Result "1-0"]
[WhiteElo "2364"]
[BlackElo "2151"]
[TimeControl "180+1"]
[EndTime "16:01:38 PDT"]
[Termination "Cristi_Coca won by checkmate"]

1. e4 {[%clk 0:02:55]} 1... d5 {[%clk 0:02:53.7]} 2. exd5 {[%clk 0:02:54.9]}
2... Qxd5 {[%clk 0:02:54.6]} 3. Nc3 {[%clk 0:02:55.5]} 3... Qd6 {[%clk 0:02:55]}
4. d4 {[%clk 0:02:55.3]} 4... Nf6 {[%clk 0:02:55.6]} 5. Nge2 {[%clk 0:02:52.9]}
5... a6 {[%clk 0:02:55.2]} 6. Bf4 {[%clk 0:02:51.9]} 6... Qb4 {[%clk 0:02:54.7]}
7. Qd2 {[%clk 0:02:46.7]} 7... c5 {[%clk 0:02:49.7]} 8. dxc5 {[%clk 0:02:39.5]}
8... Qxc5 {[%clk 0:02:48]} 9. a4 {[%clk 0:02:32.3]} 9... Nc6 {[%clk 0:02:13.7]}
10. Be3 {[%clk 0:02:18.3]} 10... Qb4 {[%clk 0:02:12.1]} 11. Nd4 {[%clk
0:01:34.1]} 11... Bd7 {[%clk 0:02:03.9]} 12. Nb3 {[%clk 0:01:26.7]} 12... O-O-O
{[%clk 0:02:00.3]} 13. Bd3 {[%clk 0:01:10.3]} 13... Ne5 {[%clk 0:01:42.5]} 14.
Nc5 {[%clk 0:00:46.7]} 14... Nxd3+ {[%clk 0:01:37.7]} 15. Nxd3 {[%clk
0:00:45.3]} 15... Qg4 {[%clk 0:01:29.8]} 16. O-O {[%clk 0:00:28.1]} 16... Bc6
{[%clk 0:01:27.6]} 17. f3 {[%clk 0:00:24.4]} 17... Qg6 {[%clk 0:01:25.6]} 18.
Bf2 {[%clk 0:00:20.3]} 18... e6 {[%clk 0:01:05.7]} 19. Qe3 {[%clk 0:00:18.1]}
19... Bd6 {[%clk 0:01:05.8]} 20. b4 {[%clk 0:00:13.3]} 20... Qh6 {[%clk
0:00:53.4]} 21. Qxh6 {[%clk 0:00:11]} 21... gxh6 {[%clk 0:00:53.4]} 22. b5
{[%clk 0:00:11.6]} 22... Bd5 {[%clk 0:00:51.3]} 23. Nxd5 {[%clk 0:00:10.7]}
23... Nxd5 {[%clk 0:00:51.2]} 24. bxa6 {[%clk 0:00:11]} 24... bxa6 {[%clk
0:00:51.1]} 25. Rab1 {[%clk 0:00:11]} 25... Nc3 {[%clk 0:00:41.2]} 26. Rb6
{[%clk 0:00:08.9]} 26... Nxa4 {[%clk 0:00:39.4]} 27. Rxa6 {[%clk 0:00:08.5]}
27... Nc3 {[%clk 0:00:37.4]} 28. Rc6+ {[%clk 0:00:08.4]} 28... Kd7 {[%clk
0:00:36.6]} 29. Rxc3 {[%clk 0:00:09.3]} 29... Rc8 {[%clk 0:00:37]} 30. Rxc8
{[%clk 0:00:08.9]} 30... Rxc8 {[%clk 0:00:37.9]} 31. Rc1 {[%clk 0:00:08.6]}
31... Ba3 {[%clk 0:00:37.2]} 32. Ra1 {[%clk 0:00:08.4]} 32... Bd6 {[%clk
0:00:34.8]} 33. Ra2 {[%clk 0:00:08.3]} 33... Rc3 {[%clk 0:00:33.9]} 34. Bd4
{[%clk 0:00:08.1]} 34... Rc4 {[%clk 0:00:34.1]} 35. Ne5+ {[%clk 0:00:08.3]}
35... Bxe5 {[%clk 0:00:33.3]} 36. Bxe5 {[%clk 0:00:09.2]} 36... Kc6 {[%clk
0:00:33.2]} 37. Kf2 {[%clk 0:00:09.3]} 37... Kd5 {[%clk 0:00:33.4]} 38. Bf4
{[%clk 0:00:08.7]} 38... h5 {[%clk 0:00:33.1]} 39. Be3 {[%clk 0:00:08.9]} 39...
e5 {[%clk 0:00:32.2]} 40. Ke2 {[%clk 0:00:09.4]} 40... f5 {[%clk 0:00:31.8]} 41.
Kd3 {[%clk 0:00:09.3]} 41... Rc8 {[%clk 0:00:30.4]} 42. Ra5+ {[%clk 0:00:08.5]}
42... Ke6 {[%clk 0:00:30.5]} 43. c4 {[%clk 0:00:09.1]} 43... Rd8+ {[%clk
0:00:30.1]} 44. Ke2 {[%clk 0:00:09.5]} 44... Rc8 {[%clk 0:00:28.2]} 45. c5
{[%clk 0:00:09.3]} 45... f4 {[%clk 0:00:29.1]} 46. Bf2 {[%clk 0:00:09]} 46...
Kd5 {[%clk 0:00:29]} 47. Kd3 {[%clk 0:00:09.2]} 47... Rb8 {[%clk 0:00:28.6]} 48.
Ra6 {[%clk 0:00:08.7]} 48... Rb3+ {[%clk 0:00:27]} 49. Kc2 {[%clk 0:00:08.7]}
49... Rb4 {[%clk 0:00:22.5]} 50. Kc3 {[%clk 0:00:08.3]} 50... Rc4+ {[%clk
0:00:22.3]} 51. Kd3 {[%clk 0:00:08.8]} 51... Rc1 {[%clk 0:00:21.1]} 52. Rd6#
{[%clk 0:00:08.4]} 1-0

[Event "Late-Titled-Tuesday-Blitz-October-17-2023"]
[Site "Chess.com"]
[Date "2023.10.17"]
[Round "11"]
[White "WPWPWP-2015"]
[Black "Laico"]
[Result "1-0"]
[WhiteElo "2559"]
[BlackElo "2426"]
[TimeControl "180+1"]
[EndTime "16:01:46 PDT"]
[Termination "WPWPWP-2015 won on time"]

1. e4 {[%clk 0:03:00.9]} 1... e6 {[%clk 0:02:42.7]} 2. d4 {[%clk 0:03:00.2]}
2... d5 {[%clk 0:02:43.6]} 3. Nc3 {[%clk 0:02:59.6]} 3... Nf6 {[%clk 0:02:40.2]}
4. e5 {[%clk 0:02:59.3]} 4... Nfd7 {[%clk 0:02:40.7]} 5. f4 {[%clk 0:02:59.8]}
5... c5 {[%clk 0:02:41.4]} 6. Nf3 {[%clk 0:02:59.8]} 6... Nc6 {[%clk 0:02:42]}
7. Be3 {[%clk 0:02:59.2]} 7... cxd4 {[%clk 0:02:42.5]} 8. Nxd4 {[%clk 0:02:59]}
8... Bc5 {[%clk 0:02:43.1]} 9. Qd2 {[%clk 0:02:59.4]} 9... O-O {[%clk
0:02:43.4]} 10. O-O-O {[%clk 0:02:58.9]} 10... a6 {[%clk 0:02:43.5]} 11. f5
{[%clk 0:02:54.4]} 11... Nxd4 {[%clk 0:02:39.3]} 12. Bxd4 {[%clk 0:02:53.2]}
12... Bxd4 {[%clk 0:02:39.6]} 13. Qxd4 {[%clk 0:02:52.8]} 13... Qg5+ {[%clk
0:02:39.4]} 14. Kb1 {[%clk 0:02:43.2]} 14... Qxf5 {[%clk 0:02:39.6]} 15. Bd3
{[%clk 0:02:42.5]} 15... Qxe5 {[%clk 0:02:38.9]} 16. Qh4 {[%clk 0:02:41.3]}
16... h6 {[%clk 0:02:32.2]} 17. Rhf1 {[%clk 0:02:36.8]} 17... b5 {[%clk
0:02:20.9]} 18. Rde1 {[%clk 0:02:33.6]} 18... Qg5 {[%clk 0:02:19]} 19. Qf2
{[%clk 0:02:33.6]} 19... Ne5 {[%clk 0:02:13.7]} 20. h4 {[%clk 0:02:31.8]} 20...
Nxd3 {[%clk 0:02:14]} 21. cxd3 {[%clk 0:02:31.1]} 21... Qg6 {[%clk 0:02:13.3]}
22. Re3 {[%clk 0:02:28.4]} 22... d4 {[%clk 0:01:50.8]} 23. Rg3 {[%clk
0:02:24.1]} 23... Qf5 {[%clk 0:01:51.3]} 24. Rf3 {[%clk 0:02:20.8]} 24... Qg6
{[%clk 0:01:37.1]} 25. Qxd4 {[%clk 0:02:05.5]} 25... Bb7 {[%clk 0:01:37.3]} 26.
h5 {[%clk 0:01:43.7]} 26... Qxh5 {[%clk 0:01:34.6]} 27. Rg3 {[%clk 0:01:39.9]}
27... e5 {[%clk 0:01:20.9]} 28. Qb6 {[%clk 0:01:27.3]} 28... Rab8 {[%clk
0:01:08.8]} 29. Qf6 {[%clk 0:01:21.3]} 29... g6 {[%clk 0:00:49]} 30. Rf5 {[%clk
0:00:35.1]} 30... Qh1+ {[%clk 0:00:16.9]} 31. Rf1 {[%clk 0:00:34.5]} 31... Qh5
{[%clk 0:00:16.3]} 32. Ka1 {[%clk 0:00:27]} 32... b4 {[%clk 0:00:10.5]} 33. Nb1
{[%clk 0:00:22.1]} 33... Rbe8 {[%clk 0:00:06.4]} 34. Rf5 {[%clk 0:00:19.9]}
34... Qh2 {[%clk 0:00:02.8]} 35. Rh3 {[%clk 0:00:18.4]} 35... Qxh3 {[%clk
0:00:02.5]} 36. gxh3 {[%clk 0:00:18.2]} 36... gxf5 {[%clk 0:00:03.1]} 37. Qxh6
{[%clk 0:00:17.4]} 37... Re6 {[%clk 0:00:03.1]} 38. Qd2 {[%clk 0:00:12.8]} 38...
e4 {[%clk 0:00:01.8]} 39. dxe4 {[%clk 0:00:11]} 39... Bxe4 {[%clk 0:00:02.7]}
40. a3 {[%clk 0:00:08.2]} 40... Bxb1 {[%clk 0:00:02.7]} 41. Kxb1 {[%clk
0:00:08.2]} 41... bxa3 {[%clk 0:00:02.8]} 42. bxa3 {[%clk 0:00:08]} 42... Rfe8
{[%clk 0:00:03.2]} 43. Qg5+ {[%clk 0:00:07.6]} 43... Rg6 {[%clk 0:00:02.7]} 44.
Qxf5 {[%clk 0:00:08]} 44... Re2 {[%clk 0:00:02.7]} 45. Qf1 {[%clk 0:00:06.8]}
45... Rgg2 {[%clk 0:00:02.2]} 46. Qc1 {[%clk 0:00:03.3]} 46... Ra2 {[%clk
0:00:01.5]} 47. Qc8+ {[%clk 0:00:02.7]} 47... Kg7 {[%clk 0:00:01.4]} 48. Qc3+
{[%clk 0:00:02.6]} 48... Kg8 {[%clk 0:00:02.1]} 49. Qe3 {[%clk 0:00:02.4]} 1-0